[Event "56th Rubinstein Memorial D 2020"]
[Site "Polanica Zdroj"]
[Date "2020.08.23"]
[Round "9.10"]
[White "Pyka, Roman"]
[Black "Ratajczak, Hubert"]
[Result "1/2-1/2"]
[ECO "E67"]
[WhiteElo "1873"]
[BlackElo "1513"]
[Annotator "NA RC"]
[PlyCount "134"]
[EventDate "2020.08.15"]
[EventType "swiss"]
[EventCountry "POL"]
[SourceTitle "playchess.com"]
[Source "ChessBase"]
[SourceQuality "1"]
[TimeControl "40/5400+30:1800+30"]

{[%evp 8,134,39,8,34,27,27,23,29,27,35,20,22,35,24,18,37,2,20,26,33,17,84,51,41,67,222,148,227,247,193,233,244,276,241,229,243,186,175,178,178,141,131,113,32767,32767,150,76,212,14,22,0,49,-68,-83,-157,-87,-257,-275,32767,32767,32767,32767,32767,32767,32767,-208,-191,-223,-241,-276,-248,-280,-331,-351,-385,-312,-333,-280,-375,180,-228,32767,32767,32767,32767,32767,32767,32767,32767,32767,32767,32767,32767,32767,32767,32767,32767,32767,32767,32767,32767,32767,-317,-385,-306,-235,-462,-499,-297,-268,-447,-297,-502,-42,-776,-350,-352,-101,-370,-82,-89,-91,-95,-87,-89,0,-89,0]} 1. d4 {[%emt 0:00:00]} Nf6 {[%emt 0:00:12]} 2. Nf3 {[%emt 0:00:05]} g6 {[%emt 0:01:22]} 3. c4 {[%emt 0:00:21]} Bg7 {[%emt 0:01:15]} 4. Nc3 {[%emt 0:00:08]} O-O {[%emt 0:01:13]} 5. g3 {[%emt 0:00:10]} d6 {[%emt 0:01:19]} 6. Bg2 {[%emt 0:00:18]} Nbd7 {[%emt 0:00:54]} 7. O-O {[%emt 0:00:14]} e5 {[%emt 0:01:54]} 8. h3 {[%emt 0:00:16]} Re8 {[%emt 0:01:51]} 9. e4 {[%emt 0:00:21]} exd4 {[%emt 0:00:38]} 10. Nxd4 {[%emt 0:00:10]} Nc5 {[%emt 0:00:56]} 11. Re1 {[%emt 0:00:39]} Bd7 {[%emt 0:00:56] is currently scoring better than 11...a5. Played by Anish Giri in July 2020.} 12. Bg5 {[%emt 0:03:39] E68: King's Indian: Fianchetto: 6...Nbd7 7 0-0 e5 8 e4.} h6 {[%emt 0:01:12]} 13. Bf4 {[%emt 0:00:25] [#]} Nh7 $146 {[%emt 0:04:02]} ({Predecessor:} 13... h5 14. Bg5 Qc8 15. Kh2 Nh7 16. Be3 c6 17. Qc2 Ne6 18. Rad1 h4 19. g4 Be5+ {0-1 (76) Tan,Z (2513)-Harika,D (2492) Hengshui 2019}) 14. h4 {[%emt 0:03:14]} g5 {[%emt 0:08:01]} (14... Nf6 $11) 15. hxg5 {[%emt 0:00:23]} Nxg5 {[%emt 0:00:13]} 16. Rc1 {[%emt 0:05:14]} Bc6 {[%emt 0:16:18]} (16... a5 $16 {is a better defense.}) 17. b4 {[%emt 0:18:18]} Bxd4 {[%emt 0:13:12]} (17... Nce6 $16) 18. Qxd4 {[%emt 0:00:30]} Nce6 {[%emt 0:00:49]} 19. Qd2 {[%emt 0:00:16]} a6 {[%emt 0:05:49]} 20. Be3 {[%emt 0:03:49]} b5 {[%emt 0:08:11]} 21. f4 {[%emt 0:00:23]} Nh7 {[%emt 0:00:10]} 22. Nd5 {[%emt 0:03:32]} bxc4 {[%emt 0:01:51]} 23. Rxc4 {[%emt 0:00:54]} Bxd5 {[%emt 0:01:23]} 24. exd5 {[%emt 0:01:26]} Ng7 {[%emt 0:00:48]} 25. Rec1 {[%emt 0:01:47]} Rc8 {[%emt 0:09:05]} 26. Bf2 {[%emt 0:00:38]} Qd7 {[%emt 0:01:34]} 27. Kh2 {[%emt 0:04:29]} ({White should try} 27. Qd3) 27... Re7 {[%emt 0:00:57] [#]} (27... Nf6 $16) 28. Bd4 $2 {[%emt 0:03:54]} ({White should play} 28. Bh3 $1 $18 {[%cal Rh3d7]} f5 29. Bd4) 28... Qg4 {[%emt 0:02:39]} 29. Bxg7 {[%emt 0:10:19]} Kxg7 {[%emt 0:01:40]} 30. R4c2 {[%emt 0:02:16]} ({White should play} 30. Qc3+ $14 Nf6 31. Bf3) 30... Rce8 {[%emt 0:01:50]} 31. Qd4+ {[%emt 0:03:24]} ({Don't blunder} 31. Rxc7 $2 {[#]} Re2 $1 $19 {[%mdl 512]}) (31. Qd1 $15 Re2 32. Kg1) 31... Kg8 {[%emt 0:02:27]} 32. Rf1 $2 {[%emt 0:07:42]} (32. Qd1 $1 $15 Re2 33. Rxe2 Rxe2 34. Kg1) 32... Re3 {[%emt 0:03:59]} 33. Qd2 {[%emt 0:06:18]} Qxg3+ {[%emt 0:00:45]} 34. Kg1 {[%emt 0:00:02]} Re2 {[%emt 0:00:29]} 35. Qxe2 {[%emt 0:00:15]} Rxe2 {[%emt 0:00:05]} 36. Rxe2 {[%emt 0:00:05]} Nf6 {[%emt 0:02:38]} 37. Rf3 {[%emt 0:00:31]} Qg4 {[%emt 0:01:27]} 38. Kf2 {[%emt 0:00:24]} Kf8 {[%emt 0:00:25]} 39. a3 {[%emt 0:03:09]} h5 {[%emt 0:00:14]} ({Much less strong is} 39... Nxd5 40. Re4 $19) 40. Re1 {[%emt 0:01:36]} Qf5 {[%emt 0:00:17]} 41. Kg1 {[%emt 0:31:27]} Nxd5 {[%emt 0:30:57]} 42. Rff1 {[%emt 0:00:14]} c5 {[%emt 0:00:42]} 43. bxc5 {[%emt 0:00:48]} dxc5 $4 {[%emt 0:00:05]} (43... Qg4 $19 44. Re4 f5) 44. Bxd5 $4 {[%emt 0:00:19]} (44. Re5 $18 {was the only winning move.} Qd3 45. Rxd5 {[%mdl 64] Double Attack} Qxa3 46. Rxh5) 44... Qxd5 {[%emt 0:00:05]} 45. Re3 {[%emt 0:00:15]} Qd4 {[%emt 0:00:17]} 46. Rff3 {[%emt 0:00:06]} c4 {[%emt 0:00:20]} 47. Kg2 {[%emt 0:00:06]} Qd2+ {[%emt 0:00:40]} 48. Kg3 {[%emt 0:00:14]} Kg7 {[%emt 0:01:19]} 49. Rc3 {[%emt 0:00:55]} Qe1+ {[%emt 0:00:15]} 50. Kg2 {[%emt 0:00:10]} a5 {[%emt 0:00:41]} 51. Rce3 {[%emt 0:00:34]} Qd2+ {[%emt 0:00:29]} 52. Kg3 {[%emt 0:00:31]} a4 {[%emt 0:00:07]} 53. Rc3 {[%emt 0:00:08]} Qe1+ {[%emt 0:00:06]} 54. Kg2 {[%emt 0:00:17]} Qe2+ {[%emt 0:00:09]} 55. Kg3 {[%emt 0:00:24]} Kg6 {[%emt 0:00:24]} 56. Rce3 {[%emt 0:00:15]} Qd2 {[%emt 0:00:06]} 57. Rc3 {[%emt 0:00:38]} Qe1+ {[%emt 0:00:27]} 58. Kg2 {[%emt 0:00:06]} h4 {[%emt 0:00:26]} 59. Rce3 {[%emt 0:00:16]} Qd2+ {[%emt 0:00:31]} 60. Kh3 {[%emt 0:00:21]} f6 $2 {[%emt 0:00:19]} (60... f5 $19 61. Re6+ Kh5) 61. Rc3 $2 {[%emt 0:00:33]} (61. f5+ $15 Kg5 62. Re4) 61... Qe2 $2 {[%emt 0:00:10]} (61... Kf5 62. Rce3 Qb2) 62. Rce3 {[%emt 0:00:34] [#]} Qd1 $1 {[%emt 0:00:42]} 63. Kxh4 {[%emt 0:00:31] [#]} Kf5 $2 {[%emt 0:00:18]} (63... f5 $1 $19 {and Black stays clearly on top.} 64. Rg3+ Kf6) 64. Kg3 {[%emt 0:00:20]} Qg1+ {[%emt 0:00:08]} 65. Kh3 {[%emt 0:00:05]} Qh1+ {[%emt 0:01:57]} 66. Kg3 {[%emt 0:00:08]} Qg1+ {[%emt 0:00:03]} (66... Qh8 $17 67. Rf1 Qg7+ 68. Kh3 Qd7) 67. Kh3 {[%emt 0:00:08]} Qh1+ $11 {[%emt 0:00:03]} (67... Qg6 $17 68. Kh2 Qh6+ 69. Kg1 Qg6+ 70. Rg3 Qh7) 1/2-1/2

[Event "56th Rubinstein Memorial D 2020"]
[Site "Polanica Zdroj"]
[Date "2020.08.23"]
[Round "9.11"]
[White "Janicki, Rafal"]
[Black "Pietrzak, Emilia"]
[Result "1-0"]
[ECO "B30"]
[WhiteElo "1851"]
[BlackElo "1289"]
[Annotator "NA RC"]
[PlyCount "85"]
[EventDate "2020.08.15"]
[EventType "swiss"]
[EventCountry "POL"]
[SourceTitle "playchess.com"]
[Source "ChessBase"]
[SourceQuality "1"]
[TimeControl "40/5400+30:1800+30"]

{[%evp 8,79,-11,-41,-10,-10,30,18,51,37,49,47,34,45,56,16,14,-12,44,-33,-16,-60,-12,-62,-45,-52,-32,-65,-31,-29,-30,-33,0,-87,-4,-4,11,5,0,0,20,0,60,50,91,32767,32767,32767,32767,0,19,37,77,-30,-25,-56,0,-20,0,-289,-201,-235,0,0,0,-13,1149,1131,29989,1297,29981,1305,29983,1305]} 1. e4 {[%emt 0:00:00]} c5 {[%emt 0:04:55]} 2. Nf3 {[%emt 0:00:00]} Nc6 {[%emt 0:00:03]} 3. d3 {[%emt 0:00:10]} Nf6 {[%emt 0:00:10]} 4. g3 {[%emt 0:00:07]} d5 {[%emt 0:00:38]} 5. Nbd2 {[%emt 0:00:24]} Bg4 {[%emt 0:00:55]} 6. Bg2 {[%emt 0:00:22]} g6 {[%emt 0:01:40] B29: Sicilian: 2 Nf3 Nf6 (Nimzowitsch Variation).} 7. h3 {[%emt 0:00:46] [#]} Bd7 $146 {[%emt 0:02:45]} ({Predecessor:} 7... Bxf3 8. Bxf3 Bg7 9. O-O dxe4 10. dxe4 Qd7 11. Kh2 h5 12. Nb3 b6 13. Bf4 Rd8 {1-0 (21) Kaban,E (1994)-Erke,M (1804) Antalya 2013}) 8. e5 {[%emt 0:02:03]} Nh5 {[%emt 0:02:00]} 9. O-O {[%emt 0:01:36]} Ng7 {[%emt 0:01:01]} 10. Re1 {[%emt 0:01:17]} Ne6 {[%emt 0:01:25]} 11. Nf1 {[%emt 0:01:29]} Bg7 {[%emt 0:03:06]} 12. c3 {[%emt 0:01:03]} O-O {[%emt 0:02:03]} 13. Qe2 {[%emt 0:03:18]} ({Better is} 13. d4 $11) 13... d4 {[%emt 0:01:46]} 14. c4 {[%emt 0:00:59]} a6 {[%emt 0:00:20]} 15. a4 {[%emt 0:01:56]} Nb4 {[%emt 0:04:22]} 16. b3 {[%emt 0:11:42]} b5 {[%emt 0:08:31]} 17. N3h2 {[%emt 0:12:01]} Rb8 {[%emt 0:02:21]} 18. axb5 {[%emt 0:00:59]} axb5 {[%emt 0:00:06]} 19. f4 {[%emt 0:00:49]} Bc6 {[%emt 0:08:04]} 20. g4 {[%emt 0:01:46]} (20. Bxc6 $11 Nxc6 21. Nf3) 20... Ra8 {[%emt 0:01:55]} ({Black should try} 20... Bxg2 $17 21. Kxg2 Bh6) 21. Rxa8 $1 {[%emt 0:08:47]} Qxa8 {[%emt 0:00:18]} 22. Bxc6 {[%emt 0:00:11]} Qxc6 {[%emt 0:00:51]} 23. f5 {[%emt 0:02:31]} Nc7 {[%emt 0:03:42]} 24. Bd2 {[%emt 0:03:12]} Nca6 {[%emt 0:06:02]} (24... bxc4 $11 25. bxc4 Ra8) 25. Ng3 {[%emt 0:03:42]} Ra8 {[%emt 0:03:18]} 26. g5 {[%emt 0:02:34]} Nc2 {[%emt 0:02:53]} 27. Rf1 {[%emt 0:01:15]} Nab4 {[%emt 0:00:29] [#]} 28. f6 $2 {[%emt 0:02:06]} (28. e6 $1 $18) 28... exf6 {[%emt 0:00:20]} 29. gxf6 {[%emt 0:01:52]} Bf8 {[%emt 0:00:11]} 30. Nf3 {[%emt 0:06:36]} ({White should try} 30. cxb5 $16 Qe6 31. Ng4) 30... bxc4 {[%emt 0:01:48]} 31. bxc4 {[%emt 0:01:35]} (31. dxc4 $11 Ra6 32. Ng5) 31... Ra2 {[%emt 0:03:17]} 32. Ng5 {[%emt 0:02:37] [#]} Ne3 $1 {[%emt 0:00:56]} 33. Rf3 $2 {[%emt 0:03:36]} (33. e6 $1 $11 {and White has nothing to worry.}) 33... Bh6 {[%emt 0:03:13]} 34. N3e4 {[%emt 0:02:29]} Qc7 $2 {[%emt 0:01:10]} (34... Ra1+ $19 35. Kh2 Ra2) 35. e6 {[%emt 0:01:29]} Ra1+ {[%emt 0:10:32]} 36. Be1 {[%emt 0:00:31]} fxe6 $2 {[%emt 0:00:35]} (36... Nbc2 $11 37. Nxf7 Bf4) 37. f7+ {[%emt 0:00:15]} Kh8 {[%emt 0:00:23]} 38. f8=Q+ $18 {[%emt 0:00:57]} Bxf8 {[%emt 0:00:09]} 39. Rxf8+ {[%emt 0:00:10]} Kg7 {[%emt 0:00:14]} 40. Nxe6+ {[%emt 0:00:23] Double Attack} Kh6 {[%emt 0:00:05]} 41. Nxc7 {[%emt 0:30:23]} Ra2 {[%emt 0:30:10]} (41... Nbc2 {[#]} 42. Rf1 $1 {[%mdl 512]} Rxe1 43. Rxe1) 42. Bd2 {[%emt 0:00:22]} Ra1+ {[%emt 0:00:32]} 43. Kh2 {[%emt 0:00:18]} 1-0

[Event "56th Rubinstein Memorial D 2020"]
[Site "Polanica Zdroj"]
[Date "2020.08.23"]
[Round "9.12"]
[White "Grzebieniowski, Michal"]
[Black "Sypien, Natan"]
[Result "1/2-1/2"]
[ECO "E19"]
[WhiteElo "1390"]
[BlackElo "1794"]
[Annotator "NA RC"]
[PlyCount "20"]
[EventDate "2020.08.15"]
[EventType "swiss"]
[EventCountry "POL"]
[SourceTitle "playchess.com"]
[Source "ChessBase"]
[SourceQuality "1"]
[TimeControl "40/5400+30:1800+30"]

1. d4 {[%emt 0:00:00]} Nf6 {[%emt 0:00:00]} 2. c4 {[%emt 0:00:00]} e6 {[%emt 0:00:00]} 3. Nf3 {[%emt 0:00:00]} b6 {[%emt 0:00:00]} 4. g3 {[%emt 0:00:00]} Bb7 {[%emt 0:00:00]} 5. Bg2 {[%emt 0:00:07]} Be7 {[%emt 0:00:08]} 6. O-O {[%emt 0:00:16]} O-O {[%emt 0:00:02]} 7. Nc3 {[%emt 0:00:39]} Ne4 {[%emt 0:00:02]} 8. Qc2 {[%emt 0:05:18]} Nxc3 {[%emt 0:00:04]} 9. Qxc3 {[%emt 0:00:34]} c5 {[%emt 0:00:22]} 10. dxc5 {[%emt 0:02:52]} bxc5 {[%emt 0:00:08]} 1/2-1/2

[Event "56th Rubinstein Memorial D 2020"]
[Site "Polanica Zdroj"]
[Date "2020.08.23"]
[Round "9.13"]
[White "Szczygiel, Jakub"]
[Black "Lisiecki, Robert"]
[Result "1/2-1/2"]
[ECO "A50"]
[WhiteElo "1802"]
[BlackElo "1749"]
[Annotator "NA RC"]
[PlyCount "28"]
[EventDate "2020.08.15"]
[EventType "swiss"]
[EventCountry "POL"]
[SourceTitle "playchess.com"]
[Source "ChessBase"]
[SourceQuality "1"]
[TimeControl "40/5400+30:1800+30"]

{[%evp 8,28,70,69,63,29,33,48,47,57,85,42,89,0,100,93,109,87,121,79,32767,86,139]} 1. d4 {[%emt 0:00:00]} Nf6 {[%emt 0:00:00]} 2. c4 {[%emt 0:00:00]} Nc6 {[%emt 0:00:00]} 3. Nf3 {[%emt 0:00:00]} e6 {[%emt 0:00:00]} 4. a3 {[%emt 0:00:00]} d6 {[%emt 0:00:02]} 5. Nc3 {[%emt 0:00:09]} g6 {[%emt 0:00:04]} 6. Bg5 {[%emt 0:00:14]} Bg7 {[%emt 0:00:06]} 7. e4 {[%emt 0:00:20]} O-O {[%emt 0:03:42]} 8. Qd2 {[%emt 0:00:14]} Re8 {[%emt 0:01:47]} 9. Be2 {[%emt 0:01:20]} e5 {[%emt 0:01:24] [#]} 10. d5 {[%emt 0:01:14]} ({Better is} 10. dxe5 $1 $16 Nxe5 11. Nxe5 Rxe5 12. f4 Rxg5 13. fxg5) 10... Nb8 {[%emt 0:00:32]} (10... Nd4 $1 $11 {remains equal.}) 11. h3 {[%emt 0:00:26]} a5 {[%emt 0:00:08]} 12. O-O {[%emt 0:00:10]} a4 {[%emt 0:01:03]} 13. Ne1 {[%emt 0:00:30]} Nbd7 {[%emt 0:02:49]} 14. Nd3 {[%emt 0:00:53]} b6 $16 {[%emt 0:00:52]} (14... Qe7 $14) 1/2-1/2

[Event "56th Rubinstein Memorial D 2020"]
[Site "Polanica Zdroj"]
[Date "2020.08.23"]
[Round "9.14"]
[White "Zarzecki, Dymitr Stanislaw"]
[Black "Lewandrowski, Tomasz"]
[Result "1-0"]
[ECO "C65"]
[WhiteElo "1596"]
[BlackElo "1879"]
[Annotator "NA RC"]
[PlyCount "75"]
[EventDate "2020.08.15"]
[EventType "swiss"]
[EventCountry "POL"]
[SourceTitle "playchess.com"]
[Source "ChessBase"]
[SourceQuality "1"]
[TimeControl "40/5400+30:1800+30"]

{[%evp 8,75,27,0,12,12,9,6,15,15,14,19,12,2,0,-20,18,-16,31,28,35,46,66,66,76,0,28,0,73,68,72,37,30,26,29,8,46,35,30,-19,141,138,170,-242,89,32767,32767,122,233,-126,-141,-150,-148,32767,32767,32767,32767,32767,32767,32767,517,561,561,589,29996,590,29997,29998,29998,29999]} 1. e4 {[%emt 0:00:01]} e5 {[%emt 0:00:00]} 2. Nf3 {[%emt 0:00:07]} Nc6 {[%emt 0:00:06]} 3. Bb5 {[%emt 0:00:09]} Nf6 {[%emt 0:00:13]} 4. d3 {[%emt 0:00:18]} Bc5 {[%emt 0:00:11]} 5. O-O {[%emt 0:00:22]} d6 {[%emt 0:00:28]} 6. h3 {[%emt 0:00:37]} h6 {[%emt 0:08:24]} 7. c3 {[%emt 0:00:10] C65: Ruy Lopez: Berlin Defence (3...Nf6), unusual lines and 4 0-0 Bc5.} O-O {[%emt 0:00:32]} 8. Re1 {[%emt 0:01:20]} Bb6 {[%emt 0:02:50] seems to push 8...Bd7 aside.} 9. Nbd2 {[%emt 0:00:51]} Ne7 {[%emt 0:01:35]} 10. Nf1 {[%emt 0:00:26]} Ng6 {[%emt 0:03:13]} 11. d4 {[%emt 0:01:35]} c6 {[%emt 0:01:59]} 12. Ba4 {[%emt 0:00:39]} Be6 {[%emt 0:06:47]} 13. Bc2 {[%emt 0:00:33]} Qd7 {[%emt 0:03:22]} 14. Ng3 {[%emt 0:03:48] [#]} Rae8 $146 {[%emt 0:05:22]} ({Predecessor:} 14... Rfe8 15. Be3 Qc7 16. Qd2 Rad8 17. Nf5 Bxf5 18. exf5 Nf8 19. Bxh6 N8h7 20. Be3 Nd5 {1-0 (31) Bauer,C (2605)-Sargissian,G (2660) Paris 2009}) 15. a4 {[%emt 0:01:19]} a5 $1 $11 {[%emt 0:00:23]} 16. Nf5 {[%emt 0:06:57]} (16. Be3 $16 Qc7 17. Qd2) 16... Kh8 {[%emt 0:02:28]} (16... Nxe4 $1 $15 17. Nxh6+ gxh6 18. Bxe4 f5) 17. Ng3 {[%emt 0:08:56]} Rg8 {[%emt 0:03:19]} 18. Be3 {[%emt 0:04:11]} Bc7 {[%emt 0:04:36]} 19. dxe5 {[%emt 0:00:54]} dxe5 {[%emt 0:00:33]} 20. Qxd7 {[%emt 0:02:20]} Nxd7 {[%emt 0:00:39]} 21. Rad1 {[%emt 0:00:53]} Nb6 {[%emt 0:00:43]} 22. Nf5 {[%emt 0:02:50]} f6 {[%emt 0:02:57]} 23. N3h4 {[%emt 0:01:36]} Nf4 {[%emt 0:07:54] [#]} ({Better is} 23... Nxh4 $11 24. Nxh4 Nc4) 24. Bxf4 $1 {[%emt 0:03:06]} exf4 {[%emt 0:00:05] [#]} 25. Ng6+ $2 {[%emt 0:01:09]} (25. Ne7 $1 $16 {[%mdl 512] stays on course.}) 25... Kh7 {[%emt 0:00:07]} 26. Nfe7 {[%emt 0:00:15]} Nc8 {[%emt 0:07:16]} 27. e5 {[%emt 0:02:37]} ({Inferior is} 27. Nxg8 Kxg6 28. e5+ f5 $17 29. Rd4 Rxg8 $17) 27... f5 {[%emt 0:00:01]} (27... Nxe7 $16 28. Nxe7+ {[%mdl 64] Discovered Attack} f5 29. Nxg8 Kxg8) 28. Nxf5 $2 {[%emt 0:02:30]} (28. Nxf4 $18 Rxe7 29. Nxe6) 28... Kxg6 {[%emt 0:00:24]} 29. Nd6+ {[%emt 0:02:43]} Kg5 {[%emt 0:00:27]} 30. h4+ {[%emt 0:02:08]} Kxh4 {[%emt 0:00:44]} 31. g3+ {[%emt 0:00:38]} Kg4 {[%emt 0:02:02]} 32. Rd4 {[%emt 0:00:46]} g5 {[%emt 0:02:11]} 33. Kg2 {[%emt 0:01:46]} Bd5+ {[%emt 0:03:28] [#]} 34. Rxd5 $1 {[%emt 0:09:37]} f3+ {[%emt 0:00:14] [#]} 35. Kh2 $1 {[%emt 0:00:14]} cxd5 {[%emt 0:03:36]} 36. Bf5+ {[%emt 0:00:17]} Kh5 {[%emt 0:00:12]} 37. g4+ {[%emt 0:00:16]} Kh4 {[%emt 0:00:47]} 38. Rh1 {[%emt 0:00:08]} 1-0

[Event "56th Rubinstein Memorial D 2020"]
[Site "Polanica Zdroj"]
[Date "2020.08.23"]
[Round "9.15"]
[White "Ciechonski, Piotr"]
[Black "Bednarczyk, Mateusz"]
[Result "1-0"]
[ECO "B23"]
[WhiteElo "1774"]
[BlackElo "1500"]
[Annotator "NA RC"]
[PlyCount "115"]
[EventDate "2020.08.15"]
[EventType "swiss"]
[EventCountry "POL"]
[SourceTitle "playchess.com"]
[Source "ChessBase"]
[SourceQuality "1"]
[TimeControl "40/5400+30:1800+30"]

1. e4 {[%emt 0:00:00]} c5 {[%emt 0:05:12]} 2. Nc3 {[%emt 0:00:19]} Nc6 {[%emt 0:00:37]} 3. f4 {[%emt 0:00:03]} g6 {[%emt 0:00:08]} 4. Nf3 {[%emt 0:00:41]} Bg7 {[%emt 0:00:07]} 5. Bc4 {[%emt 0:00:39]} e6 {[%emt 0:00:08]} 6. d3 {[%emt 0:00:21]} Nge7 {[%emt 0:00:05]} 7. f5 {[%emt 0:01:29]} exf5 {[%emt 0:04:05]} 8. O-O {[%emt 0:00:34]} O-O {[%emt 0:00:56]} 9. Qe1 {[%emt 0:00:35]} Na5 {[%emt 0:11:15]} 10. Bg5 {[%emt 0:11:37]} Nxc4 {[%emt 0:00:23]} 11. dxc4 {[%emt 0:01:35]} f6 {[%emt 0:00:26]} 12. Bf4 {[%emt 0:01:35]} fxe4 {[%emt 0:04:23]} 13. Bd6 {[%emt 0:03:41]} Re8 {[%emt 0:01:13]} 14. Qxe4 {[%emt 0:02:35]} Nf5 {[%emt 0:03:09]} 15. Qd5+ {[%emt 0:01:32]} Kh8 {[%emt 0:00:31]} 16. Bxc5 {[%emt 0:03:58]} d6 {[%emt 0:02:02]} 17. Bf2 {[%emt 0:00:09]} Be6 {[%emt 0:01:39]} 18. Qd3 {[%emt 0:02:15]} Rc8 {[%emt 0:00:38]} 19. b3 {[%emt 0:00:35]} a6 {[%emt 0:03:39]} 20. Rad1 {[%emt 0:00:31]} Bf8 {[%emt 0:00:42]} 21. a4 {[%emt 0:01:33]} Qc7 {[%emt 0:13:44]} 22. Nd5 {[%emt 0:00:24]} Qf7 {[%emt 0:00:37]} 23. Nf4 {[%emt 0:06:28]} Rcd8 {[%emt 0:00:42]} 24. Nxe6 {[%emt 0:04:20]} Rxe6 {[%emt 0:01:04]} 25. Nd4 {[%emt 0:00:41]} Nxd4 {[%emt 0:00:14]} 26. Bxd4 {[%emt 0:00:52]} Be7 {[%emt 0:00:50]} 27. Bb2 {[%emt 0:03:32]} Kg8 {[%emt 0:02:23]} 28. Qd5 {[%emt 0:01:14]} Re2 {[%emt 0:01:54]} 29. Qd3 {[%emt 0:01:10]} Re6 {[%emt 0:01:15]} 30. Qc3 {[%emt 0:01:09]} Rf8 {[%emt 0:06:57]} 31. Rd2 {[%emt 0:05:13]} Bd8 {[%emt 0:01:20]} 32. Kh1 {[%emt 0:01:10]} Bb6 {[%emt 0:01:06]} 33. a5 {[%emt 0:00:57]} Ba7 {[%emt 0:00:20]} 34. Rd3 {[%emt 0:01:30]} Qe7 {[%emt 0:04:45]} 35. Rdf3 {[%emt 0:03:49]} Rf7 {[%emt 0:04:48]} 36. Qd3 {[%emt 0:00:13]} Rf8 {[%emt 0:02:59]} 37. h3 {[%emt 0:00:30]} Rf7 {[%emt 0:01:13]} 38. Qd5 {[%emt 0:00:25]} Kf8 {[%emt 0:01:31]} 39. b4 {[%emt 0:00:13]} Re1 {[%emt 0:02:49]} 40. Qd2 {[%emt 0:02:25]} Rxf1+ {[%emt 0:00:40]} 41. Rxf1 {[%emt 0:30:03]} Kg7 {[%emt 0:30:38]} 42. b5 {[%emt 0:01:03]} Bc5 {[%emt 0:00:58]} 43. Bd4 {[%emt 0:00:55]} Bxd4 {[%emt 0:00:39]} 44. Qxd4 {[%emt 0:00:02]} Qe2 {[%emt 0:00:15]} 45. Qd3 {[%emt 0:00:35]} Re7 {[%emt 0:01:01]} 46. Rd1 {[%emt 0:00:38]} Qf2 {[%emt 0:05:09]} 47. Qxd6 {[%emt 0:05:47]} Re1+ {[%emt 0:00:04]} 48. Rxe1 {[%emt 0:00:53]} Qxe1+ {[%emt 0:00:02]} 49. Kh2 {[%emt 0:00:27]} Qxa5 {[%emt 0:00:04]} 50. Qd7+ {[%emt 0:00:18]} Kh6 {[%emt 0:00:19]} 51. Qxb7 {[%emt 0:00:41]} axb5 {[%emt 0:00:10]} 52. cxb5 {[%emt 0:01:55]} Qc3 {[%emt 0:00:07]} 53. Qe4 {[%emt 0:03:10]} Qc5 {[%emt 0:00:35]} 54. Qf4+ {[%emt 0:01:48]} Kg7 {[%emt 0:00:10]} 55. c4 {[%emt 0:00:10]} g5 {[%emt 0:00:23]} 56. Qg3 {[%emt 0:01:33]} h6 {[%emt 0:02:16]} 57. Qb8 {[%emt 0:00:12]} Qxc4 {[%emt 0:00:13]} 58. b6 1-0

[Event "56th Rubinstein Memorial D 2020"]
[Site "Polanica Zdroj"]
[Date "2020.08.23"]
[Round "9.16"]
[White "Szydelko, Kazimierz"]
[Black "Bialik, Nikodem"]
[Result "1-0"]
[ECO "D32"]
[WhiteElo "1713"]
[BlackElo "1552"]
[Annotator "NA"]
[PlyCount "76"]
[EventDate "2020.08.15"]
[EventType "swiss"]
[EventCountry "POL"]
[SourceTitle "playchess.com"]
[Source "ChessBase"]
[SourceQuality "1"]
[TimeControl "40/5400+30:1800+30"]

1. Nf3 {[%emt 0:00:00]} e6 {[%emt 0:07:29]} 2. d4 {[%emt 0:00:00]} d5 {[%emt 0:00:12]} 3. c4 {[%emt 0:00:00]} c5 {[%emt 0:01:23]} 4. cxd5 {[%emt 0:00:51]} exd5 {[%emt 0:00:55]} 5. Nc3 {[%emt 0:00:03]} Be6 {[%emt 0:01:01]} 6. e4 {[%emt 0:03:39]} cxd4 {[%emt 0:07:30]} 7. Bb5+ {[%emt 0:05:05]} Nc6 {[%emt 0:02:48]} 8. Nxd4 {[%emt 0:01:31]} Rc8 {[%emt 0:02:04]} 9. Nxe6 {[%emt 0:01:55]} fxe6 {[%emt 0:00:48]} 10. exd5 {[%emt 0:00:20]} exd5 {[%emt 0:00:28]} 11. Qh5+ {[%emt 0:01:40]} g6 {[%emt 0:00:50]} 12. Qxd5 {[%emt 0:01:15]} Qxd5 {[%emt 0:00:59]} 13. Nxd5 {[%emt 0:00:10]} Nge7 {[%emt 0:00:27]} 14. Nxe7 {[%emt 0:01:58]} Bxe7 {[%emt 0:00:10]} 15. O-O {[%emt 0:01:05]} Kf7 {[%emt 0:00:40]} 16. Rd1 {[%emt 0:02:19]} Rhd8 {[%emt 0:00:36]} 17. Be3 {[%emt 0:00:50]} a6 {[%emt 0:01:13]} 18. Bc4+ {[%emt 0:01:04]} Kg7 {[%emt 0:01:48]} 19. Be6 {[%emt 0:01:03]} Ra8 {[%emt 0:03:18]} 20. Bb6 {[%emt 0:00:22]} Rxd1+ {[%emt 0:00:47]} 21. Rxd1 {[%emt 0:00:01]} Kf6 {[%emt 0:00:20]} 22. Bd5 {[%emt 0:02:46]} Rc8 {[%emt 0:01:38]} 23. Rc1 {[%emt 0:01:42]} Ke5 {[%emt 0:01:55]} 24. Bf3 {[%emt 0:02:39]} Bf6 {[%emt 0:03:33]} 25. Kf1 {[%emt 0:02:27]} Kd6 {[%emt 0:01:59]} 26. b3 {[%emt 0:01:35]} Be5 {[%emt 0:01:06]} 27. Rd1+ {[%emt 0:03:34]} Ke7 {[%emt 0:02:54]} 28. Bg4 {[%emt 0:00:57]} Rb8 {[%emt 0:01:16]} 29. Rd7+ {[%emt 0:00:55]} Kf6 {[%emt 0:00:17]} 30. Rxh7 {[%emt 0:01:08]} Ne7 {[%emt 0:01:40]} 31. Bf3 {[%emt 0:01:47]} Rc8 {[%emt 0:01:04]} 32. Be4 {[%emt 0:03:15]} Rc1+ {[%emt 0:01:44]} 33. Ke2 {[%emt 0:00:07]} Ra1 {[%emt 0:00:04]} 34. a4 {[%emt 0:01:00]} Ra2+ {[%emt 0:01:03]} 35. Kd3 {[%emt 0:02:59]} Rb2 {[%emt 0:00:17]} 36. Kc4 {[%emt 0:01:09]} Nc8 {[%emt 0:01:31]} 37. Bd8+ {[%emt 0:01:09]} Ke6 {[%emt 0:00:33]} 38. Bd5+ {[%emt 0:01:21]} Kf5 1-0